fUST/lending_fUST_20240413
["ID","MTS","AMOUNT","RATE_DAILY","PERIOD"]
[322438652,1713001845238,-500.0,0.00039452,7]
[322438653,1713001845248,-498.45758722,0.00039452,7]
[322438654,1713001845256,-500.0,0.00039452,7]
[322438655,1713001845265,-500.0,0.00039452,7]
[322438656,1713001845274,-404.94132883,0.00039452,7]
[322438657,1713001845283,-299.09868192,0.00039452,7]
[322438658,1713001845292,-500.0,0.00039452,7]
[322438659,1713001845301,-500.0,0.00039452,7]
[322438660,1713001845310,-500.0,0.00039452,7]
[322438661,1713001845320,-510.66207589,0.00039452,7]
[322438663,1713001845329,-500.0,0.00039452,7]
[322438665,1713001845339,-500.0,0.00039452,7]
[322438667,1713001845347,-500.0,0.00039452,7]
[322438669,1713001845356,-151.0,0.00039452,2]
[322438671,1713001845366,-151.0,0.00039452,2]
[322438673,1713001845376,-500.0,0.00039452,7]
[322438675,1713001845386,-500.0,0.00039452,7]
[322438677,1713001845395,-458.21709624,0.00039452,7]
[322438679,1713001845404,-500.0,0.00039452,7]
[322438681,1713001845414,-500.0,0.00039452,7]
[322438682,1713001845423,-500.0,0.00039452,7]
[322438684,1713001845432,-500.0,0.00039452,7]
[322438686,1713001845441,-500.0,0.00039452,7]
[322438688,1713001845450,-151.0,0.00039452,2]
[322438690,1713001845459,-500.0,0.00039452,7]
[322438692,1713001845468,-500.0,0.00039452,7]
[322438694,1713001845477,-500.0,0.00039452,7]
[322438696,1713001845487,-500.0,0.00039452,7]
[322438698,1713001845496,-589.61566061,0.00039452,7]
[322438700,1713001845505,-151.0,0.00039452,2]
[322438702,1713001845514,-151.0,0.00039452,2]
[322438703,1713001845523,-151.0,0.00039452,2]
[322438704,1713001845533,-680.98,0.00039452,7]
[322438705,1713001845542,-4545.46,0.00039452,7]
[322438706,1713001845551,-151.0,0.00039452,2]
[322438708,1713001845560,-500.0,0.00039452,7]
[322438709,1713001845569,-151.0,0.00039452,2]
[322438710,1713001845578,-591.43851443,0.00039452,7]
[322438711,1713001845590,-500.0,0.00039452,7]
[322438712,1713001845601,-1491.88,0.00039452,7]
[322438713,1713001845610,-500.0,0.00039452,7]
[322438714,1713001845619,-500.0,0.00039452,7]
[322438715,1713001845630,-808.46,0.00039452,7]
[322438716,1713001845639,-500.0,0.00039452,7]
[322438717,1713001845650,-500.0,0.00039452,7]
[322438718,1713001845659,-151.0,0.00039452,2]
[322438720,1713001845668,-151.0,0.00039452,2]
[322438722,1713001845677,-500.0,0.00039452,7]
[322438724,1713001845686,-598.85574291,0.00039452,7]
[322438726,1713001845695,-507.18,0.00039452,7]
[322438728,1713001845704,-683.72,0.00039452,7]
[322438730,1713001845713,-500.0,0.00039452,7]
[322438732,1713001845722,-500.0,0.00039452,7]
[322438734,1713001845731,-500.0,0.00039452,7]
[322438736,1713001845740,-500.0,0.00039452,7]
[322438738,1713001845749,-777.88,0.00039452,7]
[322438740,1713001845758,-500.0,0.00039452,7]
[322438742,1713001845767,-500.0,0.00039452,7]
[322438744,1713001845776,-1258.32,0.00039452,7]
[322438745,1713001845785,-500.0,0.00039452,7]
[322438747,1713001845794,-1107.98,0.00039452,7]
[322438749,1713001845803,-500.0,0.00039452,7]
[322438751,1713001845815,-500.0,0.00039452,7]
[322438753,1713001845825,-395.79414395,0.00039452,7]
[322438755,1713001845834,-500.0,0.00039452,7]
[322438757,1713001845844,-702.53,0.00039452,7]
[322438759,1713001845853,-500.0,0.00039452,7]
[322438761,1713001845862,-500.0,0.00039452,7]
[322438763,1713001845871,-500.0,0.00039452,7]
[322438765,1713001845880,-500.0,0.00039452,7]
[322438767,1713001845890,-500.0,0.00039452,7]
[322438769,1713001845899,-176.25516399,0.00039452,7]
[322438771,1713001845909,-500.0,0.00039452,7]
[322438773,1713001845917,-505.66921543,0.00039452,7]
[322438775,1713001845927,-1835.99,0.00039452,7]
[322438777,1713001845936,-500.0,0.00039452,7]
[322438779,1713001845946,-895.76,0.00039452,7]
[322438781,1713001845956,-500.0,0.00039452,7]
[322438783,1713001845965,-500.0,0.00039452,7]
[322438786,1713001845975,-875.58,0.00039452,7]
[322438788,1713001845985,-2935.46,0.00039452,7]
[322438790,1713001845994,-500.0,0.00039452,7]
[322438791,1713001846003,-2562.24,0.00039452,7]
[322438793,1713001846012,-500.0,0.00039452,7]
[322438794,1713001846021,-500.0,0.00039452,7]
[322438795,1713001846029,-2801.36,0.00039452,7]
[322438796,1713001846038,-500.0,0.00039452,7]
[322438797,1713001846047,-972.86,0.00039452,7]
[322438798,1713001846056,-2590.945148,0.00039452,2]
[322438799,1713001846065,-2590.945148,0.00039452,2]
[322438800,1713001846074,-500.0,0.00039452,7]
[322438801,1713001846082,-2590.945148,0.00039452,2]
[322438802,1713001846092,-500.0,0.00039452,7]
[322438803,1713001846101,-2590.945148,0.00039452,2]
[322438804,1713001846110,-2087.652867,0.00039452,2]
[322438805,1713001846119,-2087.652867,0.00039452,2]
[322438806,1713001846128,-2414.62,0.00039452,7]
[322438807,1713001846137,-512.10984927,0.00039452,7]
[322438808,1713001846145,-2087.652867,0.00039452,2]
[322438809,1713001846155,-2087.652867,0.00039452,2]
[322438810,1713001846164,-3097.48,0.00039452,7]
[322438811,1713001846173,-545.80525717,0.00039452,7]
[322438812,1713001846187,-1034.89474283,0.00039452,7]
[322438813,1713001846196,-506.16385537,0.00039452,7]
[322438814,1713001846205,-500.0,0.00039452,7]
[322438815,1713001846214,-654.54746493,0.00039452,2]
[322438816,1713001846287,-936.414026,0.00037534,2]
[322438818,1713001846297,-158.59828307,0.00039452,2]
[322438819,1713001846306,-813.145748,0.00039452,2]
[322438821,1713001846316,-813.145748,0.00039452,2]
[322438823,1713001846325,-813.145748,0.00039452,2]
[322438825,1713001846334,-515.55,0.00039452,7]
[322438827,1713001846344,-500.0,0.00039452,7]
[322438828,1713001846353,-1025.91,0.00039452,7]
[322438829,1713001846363,-1138.62,0.00039452,7]
[322438830,1713001846372,-500.0,0.00039452,7]
[322438831,1713001846380,-151.0,0.00039452,2]
[322438833,1713001846390,-151.0,0.00039452,2]
[322438834,1713001846399,-504.66367804,0.00039452,7]
[322438835,1713001846409,-7341.07210082,0.00039452,7]
[322438836,1713001846594,-500.0,0.00035616,7]
[322438837,1713001846603,-102.18282077,0.00039452,7]
[322438860,1713002017632,565.3174782,0.00037639,30]
[322438861,1713002024800,956.85972954,0.00037639,120]
[322438862,1713002026361,503.32856944,0.00037639,30]
[322438883,1713002307564,-314.51362035,0.00035048,4]
[322438884,1713002307600,-159.82727101,0.00035049,7]
[322438885,1713002307633,-154.9721438,0.000355,7]
[322438886,1713002307666,-222.83351195,0.00035516,2]
[322438887,1713002307698,-193.30076871,0.00035613,4]
[322438888,1713002307732,-155.28837047,0.00035613,4]
[322438889,1713002307756,-314.51362035,0.00035614,4]
[322438890,1713002307775,-159.82727101,0.00035614,4]
[322438891,1713002307790,-25.65910864,0.00035614,4]
[322438892,1713002307801,-129.31303516,0.00035615,4]
[322438893,1713002307821,-222.83351195,0.00035615,4]
[322438894,1713002307835,-193.30076871,0.00035615,4]
[322438895,1713002307848,-155.28837047,0.00035615,4]
[322438896,1713002307867,-496.52862742,0.00035615,4]
[322438907,1713002407994,250.0,0.00037628,35]
[322438941,1713003032172,-163.8615962,0.0002739,2]
[322438944,1713003032182,-500.0,0.00027391,2]
[322438946,1713003032194,-172.061539,0.00027397,2]
[322438948,1713003032204,-159.82727101,0.00034147,7]
[322438950,1713003032214,-159.82727101,0.00034156,7]
[322438952,1713003032224,-154.9721438,0.00034345,7]
[322438954,1713003032235,-153.05200403,0.00035516,7]
[322438957,1713003032245,-222.83351195,0.00035516,2]
[322438958,1713003032255,-341.29935642,0.00035539,2]
[322438959,1713003032266,-2168.87798292,0.000356,30]
[322438961,1713003032276,-400.0,0.00035612,2]
[322438963,1713003032286,-199.06889374,0.00035613,4]
[322438965,1713003032296,-1223.10201171,0.00035613,4]
[322438967,1713003032306,-310.45774216,0.00035613,4]
[322438969,1713003032321,-209.16026191,0.00035613,4]
[322438971,1713003032331,-233.69010313,0.00035613,4]
[322438973,1713003032341,-516.52882906,0.00035613,4]
[322438974,1713003032351,-887.42344594,0.00035613,4]
[322438976,1713003032360,-202.58507945,0.00035613,30]
[322438978,1713003032370,-155.14101577,0.00035613,4]
[322438980,1713003032380,-155.61605225,0.00035613,4]
[322438982,1713003032390,-309.890071,0.00035613,4]
[322438984,1713003032404,-358.21025438,0.00035614,4]
[322438986,1713003032415,-46389.29787568,0.00035615,4]
[322438988,1713003032426,-151.92,0.00035615,2]
[322438990,1713003032435,-151.92,0.00035615,2]
[322438992,1713003032449,-11304.89916055,0.00035616,5]
[322439066,1713003038230,-272.41852159,0.00035613,4]
[322439068,1713003038240,-55359.33082316,0.00035616,5]
[322439070,1713003038250,-237.93432944,0.00035616,2]
[322439071,1713003038258,-500.0,0.00035616,7]
[322439072,1713003038267,-500.0,0.00035616,7]
[322439073,1713003038277,-500.0,0.00035616,7]
[322439074,1713003038285,-500.41206673,0.00035616,7]
[322439075,1713003038294,-343.17,0.00035616,2]
[322439076,1713003038303,-500.0,0.00035616,7]
[322439077,1713003038312,-500.0,0.00035616,7]
[322439078,1713003038321,-500.0,0.00035616,7]
[322439079,1713003038330,-500.0,0.00035616,7]
[322439080,1713003038340,-322.12859759,0.00035616,7]
[322439081,1713003038348,-500.0,0.00035616,7]
[322439082,1713003038357,-500.0,0.00035616,7]
[322439083,1713003038366,-481.88688005,0.00035616,7]
[322439084,1713003038375,-500.0,0.00035616,7]
[322439085,1713003038384,-500.0,0.00035616,7]
[322439086,1713003038393,-500.0,0.00035616,7]
[322439087,1713003038403,-500.0,0.00035616,7]
[322439088,1713003038412,-381.97699144,0.00035616,7]
[322439089,1713003038421,-940.4,0.00035616,7]
[322439090,1713003038430,-500.0,0.00035616,7]
[322439091,1713003038439,-500.0,0.00035616,7]
[322439092,1713003038448,-503.26166634,0.00035616,7]
[322439093,1713003038457,-500.0,0.00035616,7]
[322439094,1713003038466,-500.0,0.00035616,7]
[322439095,1713003038475,-500.0,0.00035616,7]
[322439096,1713003038484,-500.0,0.00035616,7]
[322439097,1713003038493,-500.0,0.00035616,7]
[322439098,1713003038502,-337.67560102,0.00035616,7]
[322439099,1713003038511,-500.0,0.00035616,7]
[322439100,1713003038521,-500.0,0.00035616,7]
[322439101,1713003038530,-502.12859615,0.00035616,7]
[322439102,1713003038539,-500.0,0.00035616,7]
[322439103,1713003038548,-507.12255338,0.00035616,7]
[322439104,1713003038557,-500.0,0.00035616,7]
[322439105,1713003038566,-501.24410365,0.00035616,7]
[322439106,1713003038575,-500.0,0.00035616,7]
[322439107,1713003038584,-502.85893924,0.00035616,7]
[322439109,1713003038593,-500.0,0.00035616,7]
[322439110,1713003038603,-403.0062088,0.00035616,7]
[322439111,1713003038612,-500.0,0.00035616,7]
[322439112,1713003038622,-500.0,0.00035616,7]
[322439114,1713003038631,-375.0726596,0.00035616,7]
[322439116,1713003038640,-500.0,0.00035616,7]
[322439118,1713003038649,-500.0,0.00035616,7]
[322439119,1713003038658,-617.97867479,0.00035616,7]
[322439121,1713003038667,-500.0,0.00035616,7]
[322439123,1713003038676,-500.0,0.00035616,7]
[322439125,1713003038686,-500.0,0.00035616,7]
[322439127,1713003038695,-500.0,0.00035616,7]
[322439129,1713003038704,-219.02049985,0.00035616,7]
[322439130,1713003038713,-500.0,0.00035616,7]
[322439131,1713003038722,-500.0,0.00035616,7]
[322439132,1713003038731,-500.0,0.00035616,7]
[322439133,1713003038740,-500.0,0.00035616,7]
[322439134,1713003038749,-500.0,0.00035616,7]
[322439135,1713003038758,-500.0,0.00035616,7]
[322439136,1713003038767,-738.2,0.00035616,7]
[322439137,1713003038777,-500.0,0.00035616,7]
[322439138,1713003038786,-500.0,0.00035616,7]
[322439139,1713003038795,-499.68616725,0.00035616,7]
[322439140,1713003038805,-500.59272829,0.00035616,7]
[322439141,1713003038814,-301.58630501,0.00035616,7]
[322439142,1713003038823,-507.69288927,0.00035616,7]
[322439143,1713003038832,-500.0,0.00035616,7]
[322439144,1713003038842,-500.0,0.00035616,7]
[322439145,1713003038855,-500.0,0.00035616,7]
[322439146,1713003038868,-500.0,0.00035616,7]
[322439147,1713003038880,-500.0,0.00035616,7]
[322439148,1713003038892,-500.0,0.00035616,7]
[322439149,1713003038907,-298.81347776,0.00035616,7]
[322439150,1713003038918,-500.0,0.00035616,7]
[322439151,1713003038928,-500.0,0.00035616,7]
[322439152,1713003038938,-500.0,0.00035616,7]
[322439153,1713003038951,-500.0,0.00035616,7]
[322439154,1713003038962,-500.0,0.00035616,7]
[322439155,1713003038974,-642.5,0.00035616,7]
[322439156,1713003038987,-500.0,0.00035616,7]
[322439157,1713003039000,-500.0,0.00035616,7]
[322439158,1713003039012,-500.0,0.00035616,7]
[322439159,1713003039023,-500.0,0.00035616,14]
[322439160,1713003039035,-501.62064787,0.00035616,7]
[322439161,1713003039046,-500.0,0.00035616,7]
[322439162,1713003039056,-500.0,0.00035616,7]
[322439163,1713003039066,-214.81493705,0.00035616,7]
[322439164,1713003039078,-500.0,0.00035616,7]
[322439165,1713003039089,-500.0,0.00035616,7]
[322439166,1713003039101,-500.0,0.00035616,7]
[322439167,1713003039112,-500.0,0.00035616,7]
[322439168,1713003039122,-413.58826694,0.00035616,7]
[322439169,1713003039133,-500.0,0.00035616,7]
[322439170,1713003039145,-275.83421792,0.00035616,7]
[322439171,1713003039159,-500.0,0.00035616,7]
[322439172,1713003039175,-500.0,0.00035616,7]
[322439173,1713003039185,-500.0,0.00035616,7]
[322439174,1713003039194,-502.45562532,0.00035616,7]
[322439175,1713003039216,-503.91738435,0.00035616,7]
[322439176,1713003039230,-2598.75,0.00035616,7]
[322439177,1713003039242,-500.0,0.00035616,7]
[322439178,1713003039254,-509.80590463,0.00035616,7]
[322439179,1713003039267,-500.0,0.00035616,7]
[322439180,1713003039278,-500.0,0.00035616,7]
[322439181,1713003039289,-935.85,0.00035616,7]
[322439182,1713003039300,-500.0,0.00035616,7]
[322439183,1713003039311,-351.11361847,0.00035616,7]
[322439184,1713003039323,-500.0,0.00035616,7]
[322439185,1713003039334,-500.0,0.00035616,7]
[322439186,1713003039346,-500.0,0.00035616,7]
[322439187,1713003039358,-536.38619148,0.00035616,7]
[322439188,1713003039370,-500.0,0.00035616,7]
[322439189,1713003039382,-500.0,0.00035616,7]
[322439190,1713003039394,-272.3842325,0.00035616,7]
[322439191,1713003039408,-500.0,0.00035616,7]
[322439193,1713003039420,-500.0,0.00035616,7]
[322439195,1713003039433,-500.0,0.00035616,7]
[322439197,1713003039443,-500.0,0.00035616,7]
[322439200,1713003039454,-342.39120222,0.00035616,7]
[322439201,1713003039465,-500.0,0.00035616,7]
[322439203,1713003039475,-500.0,0.00035616,7]
[322439204,1713003039486,-500.0,0.00035616,7]
[322439205,1713003039498,-539.62472715,0.00035616,7]
[322439207,1713003039510,-559.75115527,0.00035616,7]
[322439208,1713003039521,-1752.76,0.00035616,7]
[322439209,1713003039532,-500.0,0.00035616,7]
[322439210,1713003039543,-500.0,0.00035616,7]
[322439211,1713003039554,-500.0,0.00035616,7]
[322439213,1713003039564,-300.0,0.00035616,7]
[322439214,1713003039575,-343.83564179,0.00035616,7]
[322439215,1713003039585,-501.17687522,0.00035616,7]
[322439216,1713003039596,-500.0,0.00035616,7]
[322439217,1713003039607,-500.0,0.00035616,7]
[322439218,1713003039617,-500.0,0.00035616,7]
[322439219,1713003039628,-500.0,0.00035616,7]
[322439220,1713003039638,-500.0,0.00035616,7]
[322439221,1713003039651,-517.7182287,0.00035616,7]
[322439222,1713003039661,-500.0,0.00035616,7]
[322439223,1713003039672,-500.0,0.00035616,7]
[322439224,1713003039683,-269.97863865,0.00035616,7]
[322439225,1713003039694,-500.0,0.00035616,7]
[322439226,1713003039703,-500.0,0.00035616,7]
[322439227,1713003039714,-248.29776842,0.00035616,7]
[322439228,1713003039724,-501.40871073,0.00035616,7]
[322439229,1713003039735,-500.0,0.00035616,7]
[322439230,1713003039745,-500.0,0.00035616,7]
[322439231,1713003039755,-500.0,0.00035616,7]
[322439232,1713003039767,-679.49,0.00035616,7]
[322439233,1713003039778,-500.0,0.00035616,7]
[322439234,1713003039789,-500.0,0.00035616,7]
[322439236,1713003039800,-500.0,0.00035616,7]
[322439237,1713003039811,-500.0,0.00035616,7]
[322439238,1713003039822,-500.0,0.00035616,7]
[322439239,1713003039833,-4340.24,0.00035616,7]
[322439240,1713003039844,-1491.88,0.00035616,7]
[322439242,1713003039856,-506.27057789,0.00035616,7]
[322439243,1713003039866,-500.0,0.00035616,7]
[322439244,1713003039878,-507.93799496,0.00035616,7]
[322439245,1713003039888,-500.0,0.00035616,7]
[322439247,1713003039900,-500.0,0.00035616,7]
[322439248,1713003039914,-500.0,0.00035616,7]
[322439249,1713003039925,-500.0,0.00035616,7]
[322439250,1713003039935,-499.30594782,0.00035616,7]
[322439251,1713003039946,-500.0,0.00035616,7]
[322439252,1713003039957,-518.33024176,0.00035616,7]
[322439253,1713003039967,-500.0,0.00035616,7]
[322439254,1713003039980,-500.0,0.00035616,7]
[322439255,1713003039991,-507.29782112,0.00035616,7]
[322439256,1713003040002,-500.0,0.00035616,7]
[322439258,1713003040013,-500.0,0.00035616,7]
[322439260,1713003040024,-502.53582593,0.00035616,7]
[322439261,1713003040034,-500.65378748,0.00035616,7]
[322439262,1713003040045,-652.58,0.00035616,7]
[322439263,1713003040056,-500.0,0.00035616,7]
[322439265,1713003040067,-500.0,0.00035616,7]
[322439266,1713003040078,-500.0,0.00035616,7]
[322439267,1713003040089,-500.0,0.00035616,7]
[322439268,1713003040100,-500.0,0.00035616,7]
[322439269,1713003040110,-158.81891326,0.00035616,7]
[322439270,1713003040121,-500.0,0.00035616,7]
[322439271,1713003040131,-500.0,0.00035616,7]
[322439272,1713003040142,-500.0,0.00035616,7]
[322439273,1713003040155,-917.74,0.00035616,7]
[322439274,1713003040167,-500.0,0.00035616,7]
[322439275,1713003040178,-1428.06,0.00035616,7]
[322439276,1713003040189,-500.0,0.00035616,7]
[322439277,1713003040199,-1056.04,0.00035616,7]
[322439278,1713003040211,-500.0,0.00035616,7]
[322439279,1713003040222,-500.0,0.00035616,7]
[322439280,1713003040232,-743.72,0.00035616,7]
[322439281,1713003040244,-500.0,0.00035616,7]
[322439282,1713003040255,-500.0,0.00035616,7]
[322439283,1713003040266,-345.51279381,0.00035616,7]
[322439284,1713003040428,-1255.53,0.00035616,7]
[322439285,1713003040440,-500.0,0.00035616,7]
[322439286,1713003040449,-502.32186539,0.00035616,7]
[322439287,1713003040459,-500.0,0.00035616,7]
[322439288,1713003040468,-500.0,0.00035616,7]
[322439289,1713003040478,-500.0,0.00035616,7]
[322439290,1713003040487,-500.0,0.00035616,7]
[322439291,1713003040497,-500.0,0.00035616,7]
[322439292,1713003040506,-500.0,0.00035616,7]
[322439293,1713003040515,-500.0,0.00035616,7]
[322439294,1713003040524,-500.92296154,0.00035616,7]
[322439295,1713003040533,-500.0,0.00035616,7]
[322439296,1713003040543,-838.83,0.00035616,7]
[322439297,1713003040552,-156.49808185,0.00035616,7]
[322439298,1713003040561,-500.33287522,0.00035616,7]
[322439299,1713003040571,-500.0,0.00035616,7]
[322439300,1713003040580,-2572.8,0.00035616,7]
[322439301,1713003040589,-500.0,0.00035616,7]
[322439302,1713003040599,-500.0,0.00035616,7]
[322439303,1713003040609,-500.0,0.00035616,7]
[322439304,1713003040619,-500.0,0.00035616,7]
[322439305,1713003040628,-500.0,0.00035616,7]
[322439306,1713003040638,-500.0,0.00035616,7]
[322439307,1713003040647,-500.0,0.00035616,7]
[322439308,1713003040659,-500.0,0.00035616,7]
[322439309,1713003040669,-500.0,0.00035616,7]
[322439310,1713003040679,-500.0,0.00035616,7]
[322439311,1713003040689,-500.0,0.00035616,7]
[322439312,1713003040699,-500.0,0.00035616,7]
[322439313,1713003040709,-500.0,0.00035616,7]
[322439314,1713003040718,-503.35510766,0.00035616,7]
[322439315,1713003040727,-394.89314671,0.00035616,7]
[322439316,1713003040736,-500.0,0.00035616,7]
[322439317,1713003040746,-500.0,0.00035616,7]
[322439318,1713003040755,-500.0,0.00035616,7]
[322439319,1713003040764,-500.0,0.00035616,7]
[322439320,1713003040773,-500.0,0.00035616,7]
[322439321,1713003040783,-227.86940097,0.00035616,7]
[322439322,1713003040792,-875.33,0.00035616,7]
[322439323,1713003040801,-500.0,0.00035616,7]
[322439324,1713003040810,-591.08396249,0.00035616,7]
[322439325,1713003040819,-500.0,0.00035616,7]
[322439326,1713003040829,-500.0,0.00035616,7]
[322439327,1713003040838,-858.23,0.00035616,7]
[322439328,1713003040847,-2833.89,0.00035616,7]
[322439329,1713003040856,-500.0,0.00035616,7]
[322439330,1713003040865,-2940.53,0.00035616,7]
[322439331,1713003040874,-500.0,0.00035616,7]
[322439332,1713003040882,-500.0,0.00035616,7]
[322439333,1713003040891,-500.0,0.00035616,7]
[322439334,1713003040900,-500.0,0.00035616,7]
[322439335,1713003040912,-500.0,0.00035616,7]
[322439336,1713003040921,-500.0,0.00035616,7]
[322439337,1713003040930,-500.0,0.00035616,7]
[322439338,1713003040938,-940.52,0.00035616,7]
[322439339,1713003040948,-500.0,0.00035616,7]
[322439340,1713003040957,-557.83602978,0.00035616,7]
[322439341,1713003040965,-500.0,0.00035616,7]
[322439342,1713003040975,-186.98402372,0.00035616,7]
[322439343,1713003040984,-2566.67,0.00035616,7]
[322439344,1713003040992,-500.0,0.00035616,7]
[322439345,1713003041001,-500.0,0.00035616,7]
[322439346,1713003041010,-500.0,0.00035616,7]
[322439347,1713003041019,-500.0,0.00035616,7]
[322439348,1713003041028,-500.0,0.00035616,7]
[322439349,1713003041037,-1140.59,0.00035616,7]
[322439350,1713003041046,-500.0,0.00035616,7]
[322439351,1713003041055,-500.0,0.00035616,7]
[322439352,1713003041064,-500.0,0.00035616,7]
[322439353,1713003041073,-505.34467129,0.00035616,7]
[322439354,1713003041082,-500.0,0.00035616,7]
[322439355,1713003041092,-500.0,0.00035616,7]
[322439356,1713003041101,-500.0,0.00035616,7]
[322439357,1713003041110,-2210.45,0.00035616,7]
[322439358,1713003041119,-153.39951599,0.00035616,7]
[322439359,1713003041128,-501.09961894,0.00035616,2]
[322439360,1713003041137,-1099.39,0.00035616,7]
[322439361,1713003041146,-891.89,0.00035616,7]
[322439362,1713003041157,-500.0,0.00035616,7]
[322439363,1713003041167,-575.3582665,0.00035616,7]
[322439364,1713003041177,-1515.32,0.00035616,7]
[322439365,1713003041187,-500.0,0.00035616,7]
[322439366,1713003041196,-173.17724066,0.00035616,7]
[322439367,1713003041205,-502.24177056,0.00035616,7]
[322439368,1713003041214,-501.56934518,0.00035616,7]
[322439369,1713003041224,-500.0,0.00035616,7]
[322439370,1713003041233,-10878.31,0.00035616,7]
[322439371,1713003041243,-500.0,0.00035616,7]
[322439372,1713003041253,-500.0,0.00035616,7]
[322439373,1713003041262,-500.0,0.00035616,7]
[322439374,1713003041272,-500.0,0.00035616,7]
[322439375,1713003041281,-500.0,0.00035616,7]
[322439376,1713003041291,-500.0,0.00035616,7]
[322439377,1713003041301,-500.0,0.00035616,7]
[322439378,1713003041310,-500.0,0.00035616,7]
[322439379,1713003041319,-260.33821339,0.00035616,7]
[322439380,1713003041329,-500.0,0.00035616,7]
[322439381,1713003041339,-517.36,0.00035616,7]
[322439382,1713003041350,-500.0,0.00035616,7]
[322439383,1713003041359,-500.0,0.00035616,7]
[322439384,1713003041367,-500.0,0.00035616,7]
[322439385,1713003041378,-824.59,0.00035616,7]
[322439386,1713003041388,-1185.77,0.00035616,7]
[322439387,1713003041399,-500.0,0.00035616,7]
[322439388,1713003041410,-36414.98,0.00035616,7]
[322439389,1713003041419,-500.0,0.00035616,7]
[322439390,1713003041428,-500.0,0.00035616,7]
[322439391,1713003041437,-500.0,0.00035616,7]
[322439392,1713003041447,-500.0,0.00035616,7]
[322439393,1713003041457,-500.0,0.00035616,7]
[322439394,1713003041466,-500.0,0.00035616,7]
[322439395,1713003041476,-500.0,0.00035616,7]
[322439396,1713003041486,-546.37,0.00035616,7]
[322439397,1713003041495,-500.0,0.00035616,7]
[322439398,1713003041503,-500.0,0.00035616,7]
[322439399,1713003041512,-760.68,0.00035616,7]
[322439400,1713003041522,-500.0,0.00035616,7]
[322439401,1713003041531,-500.70531605,0.00035616,7]
[322439402,1713003041540,-500.0,0.00035616,7]
[322439403,1713003041551,-500.0,0.00035616,7]
[322439404,1713003041561,-2693.29,0.00035616,7]
[322439405,1713003041570,-501.91655438,0.00035616,7]
[322439406,1713003041579,-500.0,0.00035616,7]
[322439407,1713003041588,-528.67681936,0.00035616,7]
[322439408,1713003041598,-500.0,0.00035616,7]
[322439409,1713003041608,-500.0,0.00035616,7]
[322439410,1713003041617,-515.26721432,0.00035616,7]
[322439411,1713003041627,-505.55557365,0.00035616,7]
[322439412,1713003041636,-500.0,0.00035616,7]
[322439413,1713003041645,-500.0,0.00035616,7]
[322439414,1713003041654,-500.0,0.00035616,7]
[322439415,1713003041664,-500.0,0.00035616,7]
[322439416,1713003041673,-983.81,0.00035616,7]
[322439417,1713003041682,-500.0,0.00035616,7]
[322439418,1713003041691,-500.0,0.00035616,7]
[322439419,1713003041701,-500.0,0.00035616,7]
[322439420,1713003041710,-500.0,0.00035616,7]
[322439421,1713003041719,-1094.72,0.00035616,7]
[322439422,1713003041729,-500.0,0.00035616,7]
[322439423,1713003041738,-500.0,0.00035616,7]